lending/lending_fUSD_20260124
["ID","MTS","AMOUNT","RATE_DAILY","PERIOD"]
[403225649,1769273440817,-500.0,0.00013698,2]
[403225650,1769273440827,-500.0,0.00013698,2]
[403225651,1769273440837,-500.0,0.00013698,2]
[403225652,1769273440846,-500.0,0.00013698,2]
[403225653,1769273440855,-233.17455593,0.00013698,2]
[403225654,1769273440864,-165.97106181,0.00013698,2]
[403225655,1769273440874,-500.0,0.00013698,2]
[403225656,1769273440884,-500.0,0.00013698,2]
[403225657,1769273440895,-500.0,0.00013698,2]
[403225658,1769273441209,-500.0,0.00013698,2]
[403225659,1769273441242,-500.0,0.00013698,2]
[403225660,1769273441251,-500.0,0.00013698,2]
[403225661,1769273441261,-909.57,0.00013698,2]
[403225662,1769273441270,-3604.83,0.00013699,2]
[403225663,1769273441279,-982.83234994,0.00013965,2]
[403225664,1769273441288,-4906.09702817,0.00013971,2]
[403225665,1769273441298,-909.57,0.00013972,2]
[403225666,1769273441312,-8210.6168647,0.00014074,2]
[403225667,1769273441325,-3564.19,0.00014152,2]
[403225668,1769273441334,-1000.0,0.00014162,2]
[403225669,1769273441344,-909.57,0.00014246,2]
[403225670,1769273441357,-1102.0,0.00014367,2]
[403225671,1769273441368,-3604.83,0.00014384,2]
[403225672,1769273441378,-343.10236963,0.00014437,2]
[403225673,1769273441387,-855.68236364,0.00014437,2]
[403225674,1769273441397,-500.0,0.00014437,2]
[403225675,1769273441406,-500.0,0.00014437,2]
[403225676,1769273441416,-500.0,0.00014437,2]
[403225677,1769273441425,-500.0,0.00014437,2]
[403225678,1769273441435,-500.0,0.00014437,2]
[403225679,1769273441447,-500.0,0.00014437,2]
[403225680,1769273441456,-500.0,0.00014437,2]
[403225681,1769273441466,-500.0,0.00014437,2]
[403225682,1769273441475,-500.0,0.00014437,2]
[403225683,1769273441485,-500.0,0.00014437,2]
[403225684,1769273441494,-500.0,0.00014437,2]
[403225685,1769273441504,-500.0,0.00014437,2]
[403225686,1769273441513,-500.0,0.00014437,2]
[403225687,1769273441522,-500.0,0.00014437,2]
[403225688,1769273441532,-500.0,0.00014437,2]
[403225689,1769273441541,-500.0,0.00014437,2]
[403225690,1769273441551,-500.0,0.00014437,2]
[403225691,1769273441560,-500.0,0.00014437,2]
[403225692,1769273441569,-500.0,0.00014437,2]
[403225693,1769273441579,-500.0,0.00014437,2]
[403225694,1769273441588,-500.0,0.00014437,2]
[403225695,1769273441598,-500.0,0.00014437,2]
[403225696,1769273441608,-174.61919141,0.00014437,2]
[403225697,1769273441617,-151.0,0.00014437,2]
[403225698,1769273441626,-250.0,0.00014437,2]
[403225699,1769273441636,-250.0,0.00014437,2]
[403225700,1769273441645,-250.0,0.00014437,2]
[403225701,1769273441654,-250.0,0.00014437,2]
[403225702,1769273441663,-250.0,0.00014437,2]
[403225703,1769273441672,-250.0,0.00014437,2]
[403225704,1769273441682,-854.2589148,0.00014437,2]
[403225705,1769273441692,-250.0,0.00014437,2]
[403225706,1769273441701,-578.20924308,0.00014437,2]
[403225707,1769273441711,-5432.0,0.00014437,2]
[403225708,1769273441719,-250.0,0.00014437,2]
[403225709,1769273441729,-250.0,0.00014437,2]
[403225710,1769273441742,-250.0,0.00014437,2]
[403225711,1769273441752,-250.0,0.00014437,2]
[403225712,1769273441761,-250.0,0.00014437,2]
[403225713,1769273441771,-301.96560903,0.00014437,2]
[403225714,1769273441780,-250.0,0.00014437,2]
[403225715,1769273441790,-250.0,0.00014437,2]
[403225716,1769273441800,-312.60820425,0.00014437,2]
[403225717,1769273441809,-322.6107,0.00014437,2]
[403225718,1769273441819,-151.0,0.00014437,2]
[403225719,1769273441828,-262.5256687,0.00014437,2]
[403225720,1769273441838,-151.0,0.00014437,2]
[403225721,1769273441848,-500.0,0.00014437,2]
[403225722,1769273441858,-151.0,0.00014437,2]
[403225723,1769273441867,-500.0,0.00014437,2]
[403225724,1769273441876,-151.0,0.00014437,2]
[403225725,1769273441886,-500.0,0.00014437,2]
[403225726,1769273441895,-151.0,0.00014437,2]
[403225727,1769273441904,-500.0,0.00014437,2]
[403225728,1769273441914,-151.0,0.00014437,2]
[403225729,1769273441923,-500.0,0.00014437,2]
[403225730,1769273441932,-151.0,0.00014437,2]
[403225731,1769273441942,-500.0,0.00014437,2]
[403225732,1769273441952,-151.0,0.00014437,2]
[403225733,1769273441961,-500.0,0.00014437,2]
[403225734,1769273441970,-151.0,0.00014437,2]
[403225735,1769273441980,-500.0,0.00014437,2]
[403225736,1769273441989,-151.0,0.00014437,2]
[403225737,1769273441999,-500.0,0.00014437,2]
[403225738,1769273442011,-151.0,0.00014437,2]
[403225739,1769273442020,-500.0,0.00014437,2]
[403225740,1769273442030,-500.0,0.00014437,2]
[403225741,1769273442041,-1185.90178612,0.0001446,2]
[403225742,1769273442052,-12947.26767937,0.00014471,2]
[403225743,1769273442063,-22840.51487508,0.00014471,2]
[403225744,1769273442072,-34168.04425165,0.00014471,2]
[403225745,1769273442082,-46230.5745,0.00014471,2]
[403225746,1769273442091,-909.57,0.0001452,2]
[403225747,1769273442101,-250.0,0.00014553,2]
[403225748,1769273442110,-180.3543553,0.00014588,2]
[403225749,1769273442123,-736.0,0.00014612,2]
[403225750,1769273442133,-823.0,0.00014677,2]
[403225751,1769273442142,-3292.0,0.00014725,2]
[403225752,1769273442152,-909.57,0.00014794,2]
[403225753,1769273442162,-8210.6168647,0.0001484,2]
[403225754,1769273442172,-500.0,0.00014863,2]
[403225755,1769273442182,-982.83234994,0.00014949,2]
[403225756,1769273442191,-181.08010149,0.00014985,2]
[403225757,1769273442201,-885.86649465,0.00014985,2]
[403225758,1769273442211,-150.0,0.00015,2]
[403225759,1769273442221,-152.0,0.00015033,3]
[403225760,1769273442231,-909.57,0.00015068,2]
[403225761,1769273442241,-900.0,0.00015068,2]
[403225762,1769273442251,-3604.83,0.00015068,2]
[403225763,1769273442261,-1102.0,0.00015123,2]
[403225764,1769273442271,-151.0,0.00015184,2]
[403225765,1769273442280,-4609.96,0.00015249,2]
[403225766,1769273442289,-909.57,0.00015342,2]
[403225767,1769273442299,-187.78006525,0.00015533,2]
[403225768,1769273442308,-918.64355495,0.00015533,2]
[403225769,1769273442321,-8210.6168647,0.00015605,2]
[403225770,1769273442333,-909.61772844,0.00015616,2]
[403225771,1769273442342,-1000.0,0.00015735,2]
[403225772,1769273442352,-3604.83,0.00015753,2]
[403225773,1769273442363,-152.0,0.0001576,4]
[403225774,1769273442373,-334.5472959,0.00015806,2]
[403225775,1769273442382,-170.17092774,0.00015873,2]
[403225776,1769273442393,-500.0,0.00015873,2]
[403225777,1769273442403,-167.94526228,0.00015873,2]
[403225778,1769273442413,-500.0,0.00015873,2]
[403225779,1769273442423,-500.0,0.00015873,2]
[403225780,1769273442432,-225.21984276,0.00015873,2]
[403225781,1769273442442,-177.5178643,0.00015873,2]
[403225782,1769273442451,-173.62225723,0.00015873,2]
[403225783,1769273442461,-501.22866478,0.00015873,2]
[403225784,1769273442470,-567.68971129,0.00015873,2]
[403225785,1769273442480,-500.0,0.00015873,2]
[403225786,1769273442489,-500.0,0.00015873,2]
[403225787,1769273442498,-582.09385403,0.00015873,2]
[403225788,1769273442512,-164.50729817,0.00015873,2]
[403225789,1769273442522,-500.0,0.00015873,2]
[403225790,1769273442532,-166.2984837,0.00015873,2]
[403225792,1769273442542,-500.0,0.00015873,2]
[403225793,1769273442551,-500.0,0.00015873,2]
[403225794,1769273442561,-500.0,0.00015873,2]
[403225795,1769273442571,-500.0,0.00015873,2]
[403225796,1769273442581,-278.24022797,0.00015873,2]
[403225797,1769273442591,-500.0,0.00015873,2]
[403225798,1769273442601,-501.32971868,0.00015873,2]
[403225799,1769273442611,-500.0,0.00015873,2]
[403225800,1769273442620,-500.0,0.00015873,2]
[403225801,1769273442630,-500.0,0.00015873,2]
[403225803,1769273442640,-500.0,0.00015873,2]
[403225805,1769273442650,-500.0,0.00015873,2]
[403225807,1769273442659,-500.0,0.00015873,2]
[403225808,1769273442669,-500.0,0.00015873,2]
[403225809,1769273442679,-163.72504406,0.00015873,2]
[403225811,1769273442689,-500.0,0.00015873,2]
[403225812,1769273442699,-500.0,0.00015873,2]
[403225813,1769273442709,-500.0,0.00015873,2]
[403225814,1769273442719,-500.0,0.00015873,2]
[403225815,1769273442729,-489.57842878,0.00015873,2]
[403225816,1769273442739,-500.0,0.00015873,2]
[403225817,1769273442748,-166.64412679,0.00015873,2]
[403225818,1769273442758,-217.42155575,0.00015873,2]
[403225819,1769273442767,-166.22451781,0.00015873,2]
[403225821,1769273442777,-500.0,0.00015873,2]
[403225823,1769273442786,-500.0,0.00015873,2]
[403225824,1769273442795,-500.0,0.00015873,2]
[403225825,1769273442805,-500.0,0.00015873,2]
[403225826,1769273442815,-169.48430069,0.00015873,2]
[403225827,1769273442824,-500.75682028,0.00015873,2]
[403225828,1769273442834,-500.0,0.00015873,2]
[403225829,1769273442843,-500.0,0.00015873,2]
[403225830,1769273442853,-500.0,0.00015873,2]
[403225831,1769273442863,-500.0,0.00015873,2]
[403225832,1769273442872,-500.0,0.00015873,2]
[403225833,1769273442882,-500.0,0.00015873,2]
[403225834,1769273442894,-500.0,0.00015873,2]
[403225835,1769273442903,-500.0,0.00015873,2]
[403225836,1769273442913,-500.0,0.00015873,2]
[403225837,1769273442922,-1102.0,0.0001588,2]
[403225838,1769273442932,-982.83234994,0.00015933,2]
[403225839,1769273442941,-298.0,0.00015985,2]
[403225840,1769273442951,-500.0,0.00015989,2]
[403225841,1769273442960,-637.33762737,0.00015989,2]
[403225842,1769273442969,-150.0,0.00016,2]
[403225843,1769273442980,-253.570956,0.00016,2]
[403225844,1769273442990,-150.0,0.00016,2]
[403225845,1769273442999,-1000.0,0.0001601,2]
[403225846,1769273443010,-500.0,0.00016038,2]
[403225847,1769273443020,-500.0,0.00016038,2]
[403225848,1769273443029,-194.72792766,0.00016081,2]
[403225849,1769273443038,-952.63336648,0.00016081,2]
[403225850,1769273443048,-150.0,0.000161,2]
[403225851,1769273443057,-1152.0,0.00016128,2]
[403225852,1769273443067,-4609.0,0.00016197,2]
[403225853,1769273443076,-150.0,0.000162,2]
[403225854,1769273443086,-150.0,0.000163,2]
[403225855,1769273443095,-671.24304532,0.000163,2]
[403225856,1769273443104,-159.59843399,0.00016322,2]
[403225857,1769273443114,-800.0,0.0001633,2]
[403225858,1769273443124,-478.76391927,0.00016338,2]
[403225859,1769273443133,-261.16646675,0.00016338,2]
[403225860,1769273443142,-500.0,0.00016356,2]
[403225861,1769273443153,-500.0,0.00016356,2]
[403225862,1769273443162,-8210.6168647,0.0001637,2]
[403225863,1769273443171,-150.0,0.000164,2]
[403225864,1769273443180,-500.0,0.0001642,2]
[403225865,1769273443189,-1000.0,0.00016421,2]
[403225866,1769273443198,-1000.0,0.00016421,2]
[403225867,1769273443208,-1000.0,0.00016421,2]
[403225868,1769273443218,-1000.0,0.00016421,2]
[403225870,1769273443228,-607.15821099,0.00016421,2]
[403225872,1769273443238,-1000.0,0.00016421,2]
[403225874,1769273443247,-1000.0,0.00016421,2]
[403225875,1769273443257,-1000.0,0.00016421,2]
[403225876,1769273443266,-1000.0,0.00016421,2]
[403225877,1769273443275,-1000.0,0.00016421,2]
[403225878,1769273443284,-1000.0,0.00016421,2]
[403225879,1769273443293,-505.83466941,0.00016421,2]
[403225880,1769273443305,-544.47711737,0.00016421,2]
[403225881,1769273443317,-542.33856448,0.00016421,2]
[403225882,1769273443330,-1000.0,0.00016421,2]
[403225883,1769273443339,-1000.0,0.00016421,2]
[403225884,1769273443349,-1000.0,0.00016421,2]
[403225885,1769273443358,-1000.0,0.00016421,2]
[403225886,1769273443369,-1000.0,0.00016421,2]
[403225887,1769273443379,-1000.0,0.00016421,2]
[403225888,1769273443389,-1000.0,0.00016421,2]
[403225889,1769273443400,-239.10627716,0.00016421,2]
[403225890,1769273443410,-1000.0,0.00016421,2]
[403225891,1769273443420,-1000.0,0.00016421,2]
[403225892,1769273443430,-1007.32533855,0.00016421,2]
[403225894,1769273443439,-1000.0,0.00016421,2]
[403225895,1769273443448,-303.1127939,0.00016421,2]
[403225896,1769273443457,-1000.0,0.00016421,2]
[403225897,1769273443466,-1000.0,0.00016421,2]
[403225898,1769273443475,-1000.0,0.00016421,2]
[403225899,1769273443484,-1000.0,0.00016421,2]
[403225900,1769273443493,-1000.0,0.00016421,2]
[403225901,1769273443504,-875.92645048,0.00016421,2]
[403225902,1769273443514,-1000.0,0.00016421,2]
[403225903,1769273443523,-1000.0,0.00016421,2]
[403225904,1769273443532,-1000.0,0.00016421,2]
[403225905,1769273443541,-151.0,0.00016435,2]
[403225906,1769273443550,-500.0,0.00016437,2]
[403225907,1769273443560,-500.0,0.00016438,2]
[403225908,1769273443569,-197.58025142,0.00016438,2]
[403225909,1769273443578,-500.0,0.00016438,2]
[403225910,1769273443587,-500.0,0.00016438,2]
[403225911,1769273443596,-500.0,0.00016438,2]
[403225912,1769273443605,-500.0,0.00016438,2]
[403225913,1769273443614,-316.743665,0.00016438,2]
[403225914,1769273443623,-679.66216883,0.00016438,2]
[403225915,1769273443633,-679.66216883,0.00016438,2]
[403225916,1769273443642,-679.66216883,0.00016438,2]
[403225917,1769273443661,-679.66216883,0.00016438,2]
[403225918,1769273443671,-679.66216883,0.00016438,2]
[403225919,1769273443680,-679.66216883,0.00016438,2]
[403225920,1769273443690,-679.66216883,0.00016438,2]
[403225921,1769273443700,-679.66216883,0.00016438,2]
[403225922,1769273443710,-679.66216883,0.00016438,2]
[403225923,1769273443720,-679.66216883,0.00016438,2]
[403225924,1769273443730,-679.66216883,0.00016438,2]
[403225925,1769273443739,-679.66216883,0.00016438,2]
[403225926,1769273443749,-679.66216883,0.00016438,2]
[403225927,1769273443759,-679.66216883,0.00016438,2]
[403225928,1769273443768,-679.66216883,0.00016438,2]
[403225929,1769273443778,-679.66216883,0.00016438,2]
[403225930,1769273443787,-679.66216883,0.00016438,2]
[403225931,1769273443797,-679.66216883,0.00016438,2]
[403225932,1769273443807,-679.66216883,0.00016438,2]
[403225933,1769273443816,-679.66216883,0.00016438,2]
[403225934,1769273443826,-679.66216883,0.00016438,2]
[403225935,1769273443835,-679.66216883,0.00016438,2]
[403225936,1769273443846,-679.66216883,0.00016438,2]
[403225937,1769273443857,-679.66216883,0.00016438,2]
[403225938,1769273443866,-679.66216883,0.00016438,2]
[403225939,1769273443875,-679.66216883,0.00016438,2]
[403225940,1769273443885,-679.66216883,0.00016438,2]
[403225941,1769273443894,-679.66216883,0.00016438,2]
[403225942,1769273443903,-679.66216883,0.00016438,2]
[403225943,1769273443913,-679.66216883,0.00016438,2]
[403225944,1769273443923,-679.66216883,0.00016438,2]
[403225945,1769273443932,-679.66216883,0.00016438,2]
[403225946,1769273443942,-679.66216883,0.00016438,2]
[403225947,1769273443951,-679.66216883,0.00016438,2]
[403225948,1769273443962,-679.66216883,0.00016438,2]
[403225949,1769273443971,-679.66216883,0.00016438,2]
[403225950,1769273443980,-679.66216883,0.00016438,2]
[403225951,1769273443990,-679.66216883,0.00016438,2]
[403225952,1769273443999,-679.66216883,0.00016438,2]
[403225953,1769273444009,-679.66216883,0.00016438,2]
[403225954,1769273444019,-679.66216883,0.00016438,2]
[403225955,1769273444028,-679.66216883,0.00016438,2]
[403225956,1769273444037,-679.66216883,0.00016438,2]
[403225957,1769273444046,-679.66216883,0.00016438,2]
[403225958,1769273444056,-679.66216883,0.00016438,2]
[403225959,1769273444065,-679.66216883,0.00016438,2]
[403225960,1769273444075,-679.66216883,0.00016438,2]
[403225961,1769273444084,-679.66216883,0.00016438,2]
[403225962,1769273444093,-679.66216883,0.00016438,2]
[403225963,1769273444102,-679.66216883,0.00016438,2]
[403225964,1769273444111,-679.66216883,0.00016438,2]
[403225965,1769273444121,-679.66216883,0.00016438,2]
[403225966,1769273444131,-679.66216883,0.00016438,2]
[403225967,1769273444140,-679.66216883,0.00016438,2]
[403225968,1769273444149,-679.66216883,0.00016438,2]
[403225969,1769273444159,-679.66216883,0.00016438,2]
[403225970,1769273444169,-679.66216883,0.00016438,2]
[403225971,1769273444179,-679.66216884,0.00016438,2]
[403225972,1769273444189,-679.66216883,0.00016438,2]
[403225973,1769273444199,-679.66216883,0.00016438,2]
[403225974,1769273444208,-679.66216883,0.00016438,2]
[403225975,1769273444219,-679.66216883,0.00016438,2]
[403225976,1769273444229,-679.66216883,0.00016438,2]
[403225977,1769273444239,-679.66216883,0.00016438,2]
[403225978,1769273444248,-679.66216883,0.00016438,2]
[403225979,1769273444258,-679.66216883,0.00016438,2]
[403225980,1769273444268,-679.66216883,0.00016438,2]
[403225981,1769273444277,-679.66216883,0.00016438,2]
[403225982,1769273444287,-679.66216883,0.00016438,2]
[403225983,1769273444296,-679.66216883,0.00016438,2]
[403225984,1769273444306,-679.66216883,0.00016438,2]
[403225985,1769273444316,-679.66216883,0.00016438,2]
[403225986,1769273444328,-679.66216883,0.00016438,2]
[403225987,1769273444338,-679.66216883,0.00016438,2]
[403225988,1769273444348,-679.66216883,0.00016438,2]
[403225989,1769273444359,-679.66216883,0.00016438,2]
[403225990,1769273444369,-679.66216883,0.00016438,2]
[403225991,1769273444378,-1359.32433767,0.00016438,2]
[403225992,1769273444387,-1359.32433767,0.00016438,2]
[403225993,1769273444398,-1359.32433767,0.00016438,2]
[403225994,1769273444407,-1359.32433767,0.00016438,2]
[403225995,1769273444416,-1359.32433767,0.00016438,2]
[403225996,1769273444426,-1359.32433767,0.00016438,2]
[403225997,1769273444435,-1359.32433767,0.00016438,2]
[403225998,1769273444444,-1359.32433767,0.00016438,2]
[403225999,1769273444453,-1359.32433767,0.00016438,2]
[403226000,1769273444463,-1359.32433767,0.00016438,2]
[403226001,1769273444472,-1359.32433767,0.00016438,2]
[403226002,1769273444482,-1359.32433767,0.00016438,2]
[403226003,1769273444491,-1359.32433767,0.00016438,2]
[403226004,1769273444500,-1359.32433767,0.00016438,2]
[403226005,1769273444510,-1359.32433767,0.00016438,2]
[403226006,1769273444520,-150.0,0.00016438,2]
[403226007,1769273444530,-797.77,0.00016438,2]
[403226008,1769273444539,-797.77,0.00016438,2]
[403226009,1769273444549,-797.77,0.00016438,2]
[403226010,1769273444558,-797.77,0.00016438,2]
[403226011,1769273444567,-797.77,0.00016438,2]
[403226012,1769273444576,-797.77,0.00016438,2]
[403226013,1769273444585,-797.77,0.00016438,2]
[403226014,1769273444595,-797.77,0.00016438,2]
[403226015,1769273444604,-797.77,0.00016438,2]
[403226016,1769273444614,-797.77,0.00016438,2]
[403226017,1769273444624,-797.77,0.00016438,2]
[403226018,1769273444634,-797.77,0.00016438,2]
[403226019,1769273444644,-797.77,0.00016438,2]
[403226020,1769273444653,-797.77,0.00016438,2]
[403226021,1769273444663,-797.77,0.00016438,2]
[403226022,1769273444672,-900.0,0.00016438,2]
[403226023,1769273444681,-3604.83,0.00016438,2]
[403226024,1769273444691,-800.0,0.00016438,2]
[403226025,1769273444700,-151.0,0.00016438,2]
[403226026,1769273444709,-165.26,0.0001644,2]
[403226027,1769273444719,-152.0,0.00016488,5]
[403226028,1769273444729,-150.0,0.00016493,2]
[403226029,1769273444738,-200.0,0.00016548,2]
[403226030,1769273444748,-478.76391924,0.00016598,2]
[403226031,1769273444758,-201.93286099,0.00016629,2]
[403226032,1769273444767,-987.88080104,0.00016629,2]
[403226033,1769273444777,-1000.0,0.00016651,2]
[403226034,1769273444789,-1102.0,0.00016674,2]
[403226035,1769273444798,-2368.5,0.00016676,2]
[403226036,1769273444807,-165.2,0.00016712,2]
[403226037,1769273444817,-836.0,0.0001672,2]
[403226038,1769273444826,-261.16646675,0.00016729,2]
[403226039,1769273444836,-1000.0,0.00016745,2]
[403226040,1769273444846,-1000.0,0.00016764,2]
[403226041,1769273444855,-2368.5,0.00016796,2]
[403226042,1769273444865,-500.0,0.00016832,2]
[403226043,1769273444874,-478.76391924,0.00016859,2]
[403226044,1769273444884,-175.49,0.00016859,2]
[403226045,1769273444893,-982.83234994,0.00016916,2]
[403226046,1769273444903,-2368.5,0.00016917,2]
[403226047,1769273444912,-503.07183782,0.00016968,2]
[403226048,1769273444922,-1500.0,0.00016968,2]
[403226049,1769273444931,-534.24079626,0.00016968,2]
[403226050,1769273444942,-1500.0,0.00016968,2]
[403226051,1769273444951,-1073.98879249,0.00016968,2]
[403226052,1769273444960,-1500.0,0.00016968,2]
[403226053,1769273444970,-1500.0,0.00016968,2]
[403226054,1769273444979,-1500.0,0.00016968,2]
[403226055,1769273444989,-1500.0,0.00016968,2]
[403226056,1769273444998,-503.96785498,0.00016968,2]
[403226057,1769273445008,-1500.0,0.00016968,2]
[403226058,1769273445016,-348.0638206,0.00016968,2]
[403226059,1769273445026,-1502.72708763,0.00016968,2]
[403226060,1769273445036,-1500.0,0.00016968,2]
[403226061,1769273445045,-1500.0,0.00016968,2]
[403226062,1769273445054,-1500.0,0.00016968,2]
[403226063,1769273445063,-1500.0,0.00016968,2]
[403226064,1769273445072,-1500.0,0.00016968,2]
[403226065,1769273445081,-200.0,0.00016983,2]
[403226066,1769273445090,-1000.0,0.00016995,2]
[403226067,1769273445100,-228.91,0.00016996,2]
[403226068,1769273445109,-500.0,0.00016999,2]
[403226069,1769273445118,-250.0,0.00017,2]
[403226070,1769273445128,-3207.48934641,0.00017,2]
[403226071,1769273445138,-2368.5,0.00017037,2]
[403226072,1769273445148,-857.0,0.0001704,2]
[403226073,1769273445157,-213.0,0.00017043,2]
[403226074,1769273445167,-3648.0,0.00017069,2]
[403226075,1769273445176,-1000.0,0.00017072,2]
[403226076,1769273445186,-446.04265821,0.000171,2]
[403226077,1769273445195,-2000.0,0.000171,2]
[403226078,1769273445205,-478.76391924,0.00017119,2]
[403226079,1769273445215,-261.16646675,0.00017119,2]
[403226080,1769273445224,-500.0,0.00017124,2]
[403226081,1769273445234,-500.0,0.00017124,2]
[403226082,1769273445243,-500.0,0.00017124,2]
[403226083,1769273445253,-500.0,0.00017124,2]
[403226084,1769273445263,-500.0,0.00017124,2]
[403226085,1769273445272,-500.0,0.00017124,2]
[403226086,1769273445281,-238.3883883,0.00017124,2]
[403226087,1769273445291,-8210.6168647,0.00017135,2]
[403226088,1769273445300,-500.0,0.00017151,2]
[403226089,1769273445310,-2368.5,0.00017157,2]
[403226090,1769273445323,-150.0,0.00017164,2]
[403226092,1769273445583,-252.05994087,0.00017164,2]
[403226093,1769273445593,-500.0,0.0001717,2]
[403226094,1769273445603,-3648.0,0.00017172,2]
[403226095,1769273445611,-346.92554585,0.00017175,2]
[403226096,1769273445621,-599.60298507,0.00017176,2]
[403226098,1769273445631,-5432.0,0.00017176,2]
[403226100,1769273445640,-209.40437684,0.00017177,2]
[403226102,1769273445649,-1024.43239068,0.00017177,2]
[403226104,1769273445658,-3648.0,0.00017212,2]
[403226106,1769273445668,-152.0,0.00017215,6]
[403226108,1769273445677,-1000.0,0.00017222,2]
[403226110,1769273445686,-200.0,0.00017249,2]
[403226112,1769273445695,-250.0,0.0001726,2]
[403226114,1769273445705,-500.0,0.0001726,2]
[403226116,1769273445714,-150.0,0.0001726,2]
[403226118,1769273445724,-800.0,0.0001726,2]
[403226120,1769273445733,-800.0,0.0001726,2]
[403226122,1769273445743,-800.0,0.0001726,2]
[403226124,1769273445752,-800.0,0.0001726,2]
[403226126,1769273445762,-800.0,0.0001726,2]
[403226128,1769273445771,-800.0,0.0001726,2]
[403226130,1769273445780,-800.0,0.0001726,2]
[403226132,1769273445790,-800.0,0.0001726,2]
[403226134,1769273445799,-800.0,0.0001726,2]
[403226135,1769273445808,-800.0,0.0001726,2]
[403226137,1769273445817,-800.0,0.0001726,2]
[403226139,1769273445827,-800.0,0.0001726,2]
[403226140,1769273445836,-800.0,0.0001726,2]
[403226142,1769273445845,-800.0,0.0001726,2]
[403226144,1769273445855,-800.0,0.0001726,2]
[403226146,1769273445864,-800.0,0.0001726,2]
[403226148,1769273445873,-800.0,0.0001726,2]
[403226150,1769273445882,-800.0,0.0001726,2]
[403226152,1769273445892,-800.0,0.0001726,2]
[403226154,1769273445902,-800.0,0.0001726,2]
[403226156,1769273445911,-800.0,0.0001726,2]
[403226158,1769273445920,-800.0,0.0001726,2]
[403226160,1769273445929,-800.0,0.0001726,2]
[403226162,1769273445938,-800.0,0.0001726,2]
[403226164,1769273445947,-800.0,0.0001726,2]
[403226166,1769273445956,-800.0,0.0001726,2]
[403226168,1769273445965,-800.0,0.0001726,2]
[403226170,1769273445979,-800.0,0.0001726,2]
[403226172,1769273445988,-800.0,0.0001726,2]
[403226174,1769273445998,-800.0,0.0001726,2]
[403226175,1769273446008,-800.0,0.0001726,2]
[403226176,1769273446019,-800.0,0.0001726,2]
[403226177,1769273446030,-800.0,0.0001726,2]
[403226178,1769273446042,-800.0,0.0001726,2]
[403226179,1769273446052,-800.0,0.0001726,2]
[403226180,1769273446062,-800.0,0.0001726,2]
[403226181,1769273446072,-800.0,0.0001726,2]
[403226182,1769273446083,-800.0,0.0001726,2]
[403226183,1769273446093,-800.0,0.0001726,2]
[403226184,1769273446103,-800.0,0.0001726,2]
[403226185,1769273446114,-800.0,0.0001726,2]
[403226186,1769273446125,-800.0,0.0001726,2]
[403226187,1769273446136,-800.0,0.0001726,2]
[403226188,1769273446145,-800.0,0.0001726,2]
[403226189,1769273446155,-800.0,0.0001726,2]
[403226190,1769273446164,-800.0,0.0001726,2]
[403226191,1769273446174,-800.0,0.0001726,2]
[403226192,1769273446183,-452.0,0.0001726,2]
[403226193,1769273446193,-500.0,0.0001726,2]
[403226194,1769273446202,-617.0,0.0001726,2]
[403226196,1769273446211,-200.0,0.0001726,2]
[403226197,1769273446221,-200.0,0.0001726,2]
[403226198,1769273446231,-200.0,0.0001726,2]
[403226199,1769273446240,-200.0,0.0001726,2]